lending/lending_fUSD_20240711
["ID","MTS","AMOUNT","RATE_DAILY","PERIOD"]
[331741192,1720733443042,-500.0,0.00013999,2]
[331741193,1720733443051,-500.0,0.00013999,2]
[331741194,1720733443060,-497.50088489,0.00013999,2]
[331741195,1720733443069,-500.0,0.00013999,2]
[331741196,1720733443078,-482.31280265,0.00013999,2]
[331741197,1720733443092,-17.68719735,0.00013999,2]
[331741198,1720733443101,-369.36513337,0.00013999,2]
[331741199,1720733443245,-130.63486663,0.00013999,2]
[331741200,1720733443254,-293.32095009,0.00013999,2]
[331741201,1720733443266,-206.67904991,0.00013999,2]
[331741202,1720733443275,-500.0,0.00013999,2]
[331741203,1720733443284,-259.42571451,0.00013999,2]
[331741204,1720733443295,-240.57428549,0.00013999,2]
[331741205,1720733443305,-500.0,0.00013999,2]
[331741206,1720733443314,-500.0,0.00013999,2]
[331741207,1720733443323,-500.0,0.00013999,2]
[331741208,1720733443333,-155.0,0.00013999,2]
[331741209,1720733443342,-326.70030227,0.00013999,2]
[331741210,1720733443351,-500.0,0.00013999,2]
[331741211,1720733443360,-35.19665443,0.00013999,2]
[331741212,1720733443372,-696.5591496,0.00013999,2]
[331741213,1720733444764,-872.75419597,0.00013999,2]
[331741214,1720733444774,-500.0,0.00013999,2]
[331741215,1720733444787,-159.65745038,0.00013999,2]
[331741216,1720733444800,-500.0,0.00013999,2]
[331741217,1720733444812,-523.0,0.00014,2]
[331741218,1720733444823,-132728.08835365,0.00014,2]
[331741221,1720733445665,-1332.75371993,0.00013999,2]
[331741222,1720733445676,-155.0,0.00013999,2]
[331741223,1720733445688,-4989.57935807,0.00014,2]
[331741224,1720733445703,-1497.6840716,0.00014,2]
[331741225,1720733445756,-5293.73256722,0.00014,2]
[331741226,1720733445772,-3711.53114608,0.00014,2]
[331741227,1720733445787,-35156.25148164,0.00014,2]
[331741228,1720733445799,-22378.24851837,0.00014,2]
[331741229,1720733445813,-184109.45407351,0.00014,2]
[331741230,1720733445900,-2741.64108917,0.00014,2]
[331741232,1720733452143,500.0,0.0001126,2]
[331741233,1720733479317,445.51,0.00010951,2]
[331741240,1720733606936,9594.84443539,0.00011199,2]
[331741241,1720733710688,1332.75371993,0.00011199,2]
[331741243,1720733749722,1191.40858595,0.00011199,2]
[331741244,1720733763113,1476.37041399,0.00011199,2]
[331741246,1720733850027,529.13407162,0.00011199,2]
[331741248,1720733877332,227.28835865,0.00011199,2]
[331741249,1720733898509,346.03148912,0.00011199,2]
[331741251,1720733926044,155.0,0.00011199,2]
[331741252,1720733948553,202.1151995,0.00011199,2]
[331741253,1720733952624,155.0,0.00011199,2]
[331741254,1720734003856,8283.38951207,0.00011254,2]
[331741255,1720734004189,5000.0,0.00011254,2]
[331741257,1720734026145,423.23,0.00010934,2]
[331741261,1720734056739,681.08147618,0.00011199,2]
[331741264,1720734245598,159.65745038,0.00011199,2]
[331741266,1720734347878,3233.0,0.00027,120]
[331741270,1720734430067,155.0,0.00011199,2]
[331741271,1720734488489,155.0,0.00011199,2]
[331741272,1720734568981,365.9413257,0.00011199,2]
[331741274,1720734594165,429.22,0.00010908,2]
[331741292,1720734631663,-155.0,0.00012273,2]
[331741293,1720734631672,-159.65745038,0.00012302,2]
[331741294,1720734631681,-250.0,0.00012771,2]
[331741295,1720734631691,-1810.52,0.00012787,2]
[331741296,1720734631700,-150.0,0.00012841,2]
[331741297,1720734631710,-1000.0,0.00012851,2]
[331741298,1720734631719,-250.0,0.00012855,2]
[331741299,1720734631728,-184.12,0.00012858,2]
[331741300,1720734631737,-200.0,0.00012873,2]
[331741301,1720734631747,-486.21001433,0.000129,2]
[331741302,1720734631965,-1205.7897499,0.000129,2]
[331741303,1720734632034,-3691.94423577,0.000129,2]
[331741304,1720734632045,-500.0,0.00012904,2]
[331741305,1720734632055,-300.0,0.00012999,2]
[331741306,1720734632065,-1250.0,0.00013,2]
[331741307,1720734632075,-167.50937486,0.00013128,2]
[331741308,1720734632085,-429.22,0.00013171,2]
[331741309,1720734632095,-453.86560487,0.00013448,2]
[331741310,1720734632106,-995.13439513,0.00013448,2]
[331741311,1720734632116,-155.0,0.00013472,2]
[331741312,1720734632125,-155.0,0.00013543,2]
[331741313,1720734632135,-364.62323399,0.00013543,2]
[331741314,1720734632144,-155.0,0.00013543,2]
[331741315,1720734632153,-156.02718558,0.00013574,2]
[331741316,1720734632163,-666.19035473,0.00013574,2]
[331741331,1720734637764,-3332.97664968,0.00012851,2]
[331741332,1720734637776,-1229.89,0.00012851,2]
[331741333,1720734637954,-582.36804543,0.00012851,2]
[331741334,1720734637965,-278.28162685,0.00013574,2]
[331741335,1720734637975,-763.0,0.00013595,2]
[331741336,1720734637985,-763.0,0.00013735,2]
[331741337,1720734637994,-150.0,0.00013737,2]
[331741338,1720734638004,-150.0,0.00013738,2]
[331741339,1720734638014,-425.15032772,0.00013739,2]
[331741340,1720734638035,-913.8902724,0.00013739,2]
[331741342,1720734639783,-160.95939988,0.00013739,2]
[331741343,1720734639793,-150.0,0.0001374,2]
[331741344,1720734639803,-150.0,0.00013744,2]
[331741345,1720734639813,-150.0,0.00013747,2]
[331741346,1720734639822,-150.0,0.00013747,2]
[331741347,1720734639832,-150.0,0.0001375,2]
[331741348,1720734639841,-150.0,0.00013751,2]
[331741349,1720734639851,-150.0,0.00013751,2]
[331741350,1720734639860,-150.0,0.00013754,2]
[331741351,1720734639869,-150.0,0.00013754,2]
[331741352,1720734639879,-150.0,0.00013764,2]
[331741353,1720734639888,-150.0,0.00013764,2]
[331741354,1720734639897,-150.0,0.00013765,2]
[331741355,1720734639907,-150.0,0.00013766,2]
[331741356,1720734639917,-150.0,0.00013769,2]
[331741357,1720734639927,-150.0,0.00013774,2]
[331741358,1720734639937,-150.0,0.00013776,2]
[331741359,1720734639947,-150.0,0.00013776,2]
[331741360,1720734639958,-150.0,0.00013777,2]
[331741361,1720734639968,-150.0,0.00013781,2]
[331741362,1720734639977,-150.0,0.00013781,2]
[331741363,1720734639987,-26.39677188,0.00013782,2]
[331741364,1720734639998,-123.60322812,0.00013782,2]
[331741365,1720734640007,-150.0,0.00013787,2]
[331741366,1720734640017,-150.0,0.00013797,2]
[331741367,1720734640026,-150.0,0.000138,2]
[331741368,1720734640036,-150.0,0.000138,2]
[331741369,1720734640045,-150.0,0.000138,2]
[331741371,1720734640055,-259.0209,0.000138,2]
[331741373,1720734640064,-190.9388,0.000138,2]
[331741375,1720734640073,-150.0,0.00013801,2]
[331741377,1720734640082,-150.0,0.00013801,2]
[331741379,1720734640091,-806.69408851,0.00013806,2]
[331741381,1720734640100,-150.0,0.00013806,2]
[331741383,1720734640110,-2857.90073874,0.00013808,2]
[331741385,1720734640119,-1500.0,0.0001381,2]
[331741387,1720734640127,-150.0,0.00013811,2]
[331741389,1720734640136,-150.0,0.00013815,2]
[331741391,1720734640145,-150.0,0.00013819,2]
[331741393,1720734640154,-150.0,0.0001382,2]
[331741395,1720734640164,-150.0,0.0001382,2]
[331741397,1720734640173,-150.0,0.00013823,2]
[331741399,1720734640182,-150.0,0.00013827,2]
[331741401,1720734640191,-150.0,0.0001383,2]
[331741403,1720734640203,-150.0,0.00013832,2]
[331741405,1720734640214,-150.0,0.00013834,2]
[331741407,1720734640225,-150.0,0.00013839,2]
[331741409,1720734640234,-150.0,0.00013844,2]
[331741411,1720734640243,-150.0,0.00013844,2]
[331741413,1720734640253,-150.0,0.00013845,2]
[331741415,1720734640262,-150.0,0.00013845,2]
[331741417,1720734640272,-150.0,0.00013846,2]
[331741419,1720734640281,-150.0,0.00013854,2]
[331741421,1720734640291,-150.0,0.00013854,2]
[331741423,1720734640300,-150.0,0.00013855,2]
[331741425,1720734640309,-150.0,0.00013855,2]
[331741427,1720734640318,-482.77171221,0.0001386,2]
[331741429,1720734640327,-150.0,0.00013861,2]
[331741431,1720734640336,-150.0,0.00013867,2]
[331741433,1720734640345,-150.0,0.00013871,2]
[331741435,1720734640355,-150.0,0.00013874,2]
[331741437,1720734640364,-763.0,0.00013876,2]
[331741439,1720734640373,-150.0,0.00013876,2]
[331741441,1720734640382,-150.0,0.00013877,2]
[331741443,1720734640391,-779.71464,0.0001388,2]
[331741445,1720734640400,-150.0,0.00013886,2]
[331741447,1720734640410,-500.0,0.00013888,2]
[331741449,1720734640420,-150.0,0.00013889,2]
[331741451,1720734640429,-150.0,0.0001389,2]
[331741453,1720734640439,-1500.0,0.00013891,2]
[331741455,1720734640450,-150.0,0.00013891,2]
[331741457,1720734640460,-150.0,0.00013891,2]
[331741459,1720734640469,-150.0,0.00013892,2]
[331741461,1720734640479,-150.0,0.00013892,2]
[331741463,1720734640488,-150.0,0.00013893,2]
[331741465,1720734640498,-150.0,0.00013895,2]
[331741467,1720734640506,-223.25860944,0.00013899,2]
[331741468,1720734640518,-649.56241574,0.00013899,2]
[331741496,1720734641476,-289.0345,0.00013899,2]
[331741497,1720734641562,-1629.83875943,0.00013899,2]
[331741498,1720734641571,-1340.0,0.000139,2]
[331741499,1720734641580,-176.59021447,0.000139,2]
[331741500,1720734641590,-150.0,0.000139,2]
[331741501,1720734641599,-1659.0,0.000139,2]
[331741502,1720734641608,-484.707,0.000139,2]
[331741503,1720734641617,-449.73,0.000139,2]
[331741504,1720734641626,-619.0,0.000139,2]
[331741505,1720734641635,-166.0,0.000139,2]
[331741506,1720734641644,-2427.626,0.000139,2]
[331741507,1720734641654,-150.736,0.000139,2]
[331741508,1720734641664,-1313.093,0.000139,2]
[331741509,1720734641674,-3250.0,0.000139,2]
[331741510,1720734641685,-298.565,0.000139,2]
[331741511,1720734641695,-547.0,0.000139,2]
[331741512,1720734641704,-1989.0,0.000139,2]
[331741513,1720734641713,-7500.0,0.000139,2]
[331741514,1720734641723,-688.63092299,0.000139,2]
[331741515,1720734641733,-1665.0,0.000139,2]
[331741516,1720734641742,-38257.0,0.000139,2]
[331741517,1720734641752,-320.58251651,0.000139,2]
[331741518,1720734641765,-5813.0,0.000139,2]
[331741519,1720734641774,-1199.0,0.000139,2]
[331741520,1720734641784,-5179.0,0.000139,2]
[331741521,1720734641793,-164.56359999,0.000139,2]
[331741522,1720734641803,-1500.0,0.00013901,2]
[331741523,1720734641812,-150.0,0.00013902,2]
[331741524,1720734641822,-150.0,0.00013907,2]
[331741525,1720734641833,-296.91047268,0.00013909,2]
[331741526,1720734641843,-150.0,0.00013913,2]
[331741527,1720734641852,-150.0,0.00013914,2]
[331741528,1720734641861,-150.0,0.00013921,2]
[331741529,1720734641870,-150.0,0.00013923,2]
[331741530,1720734641879,-150.0,0.00013925,2]
[331741531,1720734641888,-150.0,0.00013928,2]
[331741532,1720734641897,-150.0,0.0001393,2]
[331741533,1720734641907,-150.0,0.00013932,2]
[331741534,1720734641917,-150.0,0.00013936,2]
[331741535,1720734641926,-150.0,0.00013938,2]
[331741536,1720734641936,-150.0,0.00013941,2]
[331741537,1720734641947,-150.0,0.00013942,2]
[331741538,1720734641957,-150.0,0.00013944,2]
[331741539,1720734641967,-150.0,0.00013952,2]
[331741540,1720734641976,-150.0,0.00013953,2]
[331741541,1720734641984,-150.0,0.00013958,2]
[331741542,1720734641994,-150.0,0.00013958,2]
[331741543,1720734642003,-150.0,0.00013959,2]
[331741544,1720734642013,-150.0,0.0001396,2]
[331741545,1720734642024,-779.71464,0.0001396,2]
[331741546,1720734642033,-150.0,0.00013963,2]
[331741547,1720734642042,-150.0,0.00013963,2]
[331741548,1720734642051,-150.0,0.00013963,2]
[331741549,1720734642062,-150.0,0.00013966,2]
[331741550,1720734642071,-302.99584182,0.00013967,2]
[331741551,1720734642081,-150.0,0.00013968,2]
[331741552,1720734642090,-150.0,0.00013973,2]
[331741553,1720734642100,-150.0,0.00013978,2]
[331741554,1720734642109,-150.0,0.00013986,2]
[331741555,1720734642119,-150.0,0.00013988,2]
[331741556,1720734642128,-1500.0,0.0001399,2]
[331741557,1720734642137,-150.0,0.00013995,2]
[331741558,1720734642146,-784.365668,0.00013996,2]
[331741559,1720734642155,-150.0,0.00013998,2]
[331741560,1720734642165,-209.73197584,0.00013999,2]
[331741561,1720734642174,-5927.88762708,0.00013999,2]
[331741562,1720734642183,-505.09,0.00013999,2]
[331741563,1720734642192,-500.0,0.00013999,2]
[331741564,1720734642202,-500.0,0.00013999,2]
[331741565,1720734642212,-500.0,0.00013999,2]
[331741566,1720734642220,-500.0,0.00013999,2]
[331741567,1720734642230,-500.0,0.00013999,2]
[331741568,1720734642239,-500.0,0.00013999,2]
[331741569,1720734642248,-500.0,0.00013999,2]
[331741570,1720734642259,-500.0,0.00013999,2]
[331741571,1720734642268,-380.55912853,0.00013999,5]
[331741572,1720734642277,-500.0,0.00013999,2]
[331741573,1720734642286,-500.0,0.00013999,2]
[331741574,1720734642295,-500.0,0.00013999,2]
[331741575,1720734642304,-549.28978351,0.00013999,2]
[331741576,1720734642313,-500.0,0.00013999,2]
[331741577,1720734642322,-500.0,0.00013999,2]
[331741578,1720734642332,-500.0,0.00013999,2]
[331741579,1720734642341,-500.0,0.00013999,2]
[331741580,1720734642351,-500.0,0.00013999,2]
[331741581,1720734642361,-500.0,0.00013999,2]
[331741582,1720734642370,-500.0,0.00013999,2]
[331741583,1720734642379,-500.0,0.00013999,2]
[331741584,1720734642388,-500.0,0.00013999,2]
[331741585,1720734642396,-500.0,0.00013999,2]
[331741586,1720734642405,-500.0,0.00013999,2]
[331741587,1720734642415,-500.0,0.00013999,2]
[331741588,1720734642423,-500.0,0.00013999,2]
[331741589,1720734642433,-500.0,0.00013999,2]
[331741590,1720734642442,-500.0,0.00013999,2]
[331741591,1720734642451,-500.0,0.00013999,2]
[331741592,1720734642460,-500.0,0.00013999,2]
[331741593,1720734642470,-500.0,0.00013999,2]
[331741594,1720734642479,-500.0,0.00013999,2]
[331741595,1720734642488,-500.0,0.00013999,2]
[331741596,1720734642497,-300.0,0.00013999,2]
[331741597,1720734642507,-500.0,0.00013999,2]
[331741598,1720734642515,-500.0,0.00013999,2]
[331741599,1720734642524,-500.0,0.00013999,2]
[331741602,1720734642534,-200.0,0.00013999,7]
[331741604,1720734642543,-500.0,0.00013999,2]
[331741606,1720734642552,-1537.66,0.00013999,2]
[331741608,1720734642562,-528.0,0.00014,2]
[331741610,1720734642571,-195093.76740913,0.00014,2]
[331741612,1720734642580,-5566.0,0.00014,2]
[331741613,1720734642590,-1107745.94409633,0.00014,2]
[331741622,1720734642733,-1566.81354021,0.00014,2]
[331741623,1720734642748,-696.65702926,0.00014,2]
[331741624,1720734642803,-574.91,0.00014,2]
[331741631,1720734645491,-837.93466786,0.00014,2]
[331741633,1720734645508,-352.81420997,0.00014,2]
[331741635,1720734645520,-316.28051,0.00014,2]
[331741637,1720734645531,-443.72015995,0.00014,2]
[331741641,1720734645720,-807.14163493,0.00013999,2]
[331741642,1720734645730,-2056.984596,0.00014,2]
[331741643,1720734645806,-58113.71480595,0.00014,2]
[331741644,1720734645895,-2392.08,0.00014,2]
[331741645,1720734645911,-655.0,0.00014,2]
[331741646,1720734645997,-5979.40394953,0.00014,2]
[331741648,1720734646008,-1773.84551044,0.00014,2]
[331741650,1720734646019,-549.80334205,0.00014,2]
[331741671,1720734674109,486.5858465,0.0001126,2]
[331741673,1720734794544,3000.0,0.00025568,120]
[331741674,1720734802867,313.70443052,0.00011199,2]
[331741675,1720734802892,376.73131783,0.00011199,2]
[331741678,1720734838825,690.28734422,0.00011199,2]
[331741679,1720734868279,607.49042292,0.00011199,2]
[331741680,1720734884971,222.77381837,0.00011199,2]
[331741681,1720734884996,321.50021434,0.00011199,2]
[331741682,1720734907621,244.62743291,0.00011199,2]
[331741683,1720734912056,218.30797814,0.00011199,2]
[331741684,1720734922434,328.92890075,0.00011199,2]
[331741685,1720734929530,356.45948928,0.00011199,2]
[331741686,1720734931161,274.01698659,0.00011199,2]
[331741687,1720734932124,159.65745038,0.00011199,2]
[331741688,1720734934077,155.60912632,0.00011199,2]
[331741689,1720734939971,364.46689827,0.00011199,2]
[331741690,1720734949899,301.98418289,0.00011199,2]
[331741691,1720734956098,155.0,0.00011199,2]
[331741692,1720734962814,290.89568695,0.00011199,2]
[331741693,1720734963100,202.44202405,0.00011199,2]
[331741694,1720734970814,378.47113488,0.00011199,2]
[331741697,1720735137501,456.92,0.0001098,2]
[331741698,1720735204086,5001.6583321,0.00011254,2]
[331741699,1720735204380,5000.0,0.00011254,2]
[331741700,1720735244314,603.71605934,0.0001126,2]
[331741701,1720735246903,500.0,0.0001126,2]
[331741702,1720735302371,500.0,0.0001126,2]
[331741703,1720735382422,1247.36037009,0.00011199,2]
[331741704,1720735398288,159.65745038,0.00011199,2]
[331741705,1720735439048,318.23554472,0.00011199,2]
[331741706,1720735470633,224.27467758,0.00011199,2]
[331741707,1720735477139,155.0,0.00011199,2]
[331741708,1720735585681,235.02396127,0.00011199,2]
[331741709,1720735640857,163.59,0.00010232,2]
[331741710,1720735658471,4851.35878636,0.00011199,2]
[331741713,1720735724527,194.87156642,0.00011199,2]
[331741714,1720735728154,1903.65279599,0.00011199,2]
[331741715,1720735760368,592.55102992,0.00011199,2]
[331741716,1720735788654,458.67,0.00010881,2]
[331741717,1720735801621,193.62934922,0.00011199,2]
[331741729,1720735831814,-206.26827404,0.00012273,2]
[331741730,1720735831824,-159.65745038,0.00012273,2]
[331741731,1720735831833,-296.92053615,0.00012302,2]
[331741732,1720735831843,-155.0,0.00012302,2]
[331741733,1720735831852,-64.48835465,0.0001281,2]
[331741734,1720735831863,-235.51164535,0.0001281,2]
[331741735,1720735831872,-200.04,0.00012811,2]
[331741736,1720735831881,-299.51132402,0.00012811,2]
[331741737,1720735832009,-5726.22867598,0.00012811,2]
[331741738,1720735832018,-250.0,0.00012842,2]
[331741739,1720735832028,-500.0,0.00012904,2]
[331741740,1720735832038,-1000.0,0.00012914,2]
[331741741,1720735832047,-249.52,0.00012967,2]
[331741742,1720735832056,-965.56,0.00012995,2]
[331741743,1720735832067,-458.67,0.00013145,2]
[331741744,1720735832076,-3524.5132,0.000133,2]
[331741745,1720735832085,-529.01,0.0001337,2]
[331741746,1720735832094,-150.0,0.0001337,2]
[331741747,1720735832103,-150.0,0.0001337,2]
[331741748,1720735832114,-150.0,0.0001337,2]
[331741749,1720735832124,-150.0,0.0001337,2]
[331741750,1720735832133,-165.03,0.0001337,2]
[331741751,1720735832143,-355.21,0.0001337,2]
[331741752,1720735832154,-355.21,0.0001337,2]
[331741753,1720735832163,-165.03,0.0001337,2]
[331741754,1720735832172,-163.68,0.0001337,2]
[331741755,1720735832183,-355.21,0.0001337,2]
[331741761,1720735832194,-355.21,0.0001337,2]
[331741762,1720735832308,-355.21,0.0001337,2]
[331741763,1720735832318,-501.09,0.000134,2]
[331741764,1720735832328,-150.0,0.000134,2]
[331741765,1720735832337,-150.0,0.000134,2]
[331741766,1720735832346,-165.03,0.000134,2]
[331741767,1720735832356,-150.0,0.000134,2]
[331741768,1720735832365,-354.54,0.000134,2]
[331741769,1720735832375,-499.99,0.000134,2]
[331741770,1720735832384,-150.0,0.000134,2]
[331741771,1720735832393,-355.21,0.000134,2]
[331741772,1720735832402,-165.03,0.000134,2]
[331741773,1720735832411,-150.0,0.000134,2]
[331741774,1720735832420,-150.0,0.000134,2]
[331741775,1720735832430,-355.21,0.000134,2]
[331741776,1720735832439,-165.03,0.000134,2]
[331741777,1720735832448,-150.0,0.000134,2]
[331741778,1720735832457,-150.0,0.000134,2]
[331741779,1720735832466,-165.03,0.000134,2]
[331741780,1720735832475,-355.21,0.000134,2]
[331741781,1720735832484,-355.21,0.000134,2]
[331741782,1720735832493,-165.03,0.000134,2]
[331741783,1720735832503,-150.0,0.000134,2]
[331741784,1720735832512,-150.0,0.000134,2]
[331741785,1720735832521,-165.03,0.000134,2]
[331741786,1720735832530,-355.21,0.000134,2]
[331741787,1720735832538,-165.03,0.000134,2]
[331741788,1720735832547,-355.21,0.000134,2]
[331741789,1720735832557,-355.21,0.000134,2]
[331741790,1720735832566,-150.0,0.000135,2]
[331741791,1720735832575,-355.21,0.000135,2]
[331741792,1720735832584,-308.24,0.000135,2]
[331741793,1720735832595,-150.0,0.000135,2]
[331741794,1720735832605,-165.03,0.000135,2]
[331741795,1720735832614,-738.0,0.00013595,2]
[331741796,1720735832623,-150.0,0.000136,2]
[331741797,1720735832633,-150.0,0.000136,2]
[331741798,1720735832642,-358.39,0.000136,2]
[331741799,1720735832651,-329.98,0.000136,2]
[331741800,1720735832660,-300.0,0.000136,2]
[331741801,1720735832669,-150.0,0.000136,2]
[331741802,1720735832678,-150.0,0.000136,2]
[331741803,1720735832687,-150.0,0.000136,2]
[331741804,1720735832696,-165.03,0.000136,2]
[331741805,1720735832706,-150.0,0.000136,2]
[331741806,1720735832716,-355.21,0.000136,2]
[331741807,1720735832725,-150.0,0.000136,2]
[331741808,1720735832734,-529.01,0.000136,2]
[331741809,1720735832743,-20710.00116679,0.00013615,2]
[331741810,1720735832752,-809.0,0.00013625,2]
[331741811,1720735832761,-449.0,0.00013625,2]
[331741812,1720735832771,-444.0,0.00013625,2]
[331741813,1720735832780,-619.0,0.00013625,2]
[331741814,1720735832789,-283.0,0.00013626,2]
[331741815,1720735832798,-1623.394,0.00013626,2]
[331741816,1720735832808,-3250.0,0.00013626,2]
[331741817,1720735832817,-1199.0,0.00013626,2]
[331741818,1720735832826,-5179.0,0.00013626,2]
[331741819,1720735832836,-5813.0,0.00013626,2]
[331741820,1720735832846,-1665.0,0.00013626,2]
[331741821,1720735832856,-38257.0,0.00013626,2]
[331741822,1720735832865,-529.01,0.000137,2]
[331741823,1720735832875,-150.0,0.000137,2]
[331741824,1720735832885,-150.0,0.000137,2]
[331741825,1720735832895,-150.0,0.000137,2]
[331741826,1720735832904,-165.03,0.000137,2]
[331741827,1720735832915,-355.21,0.000137,2]
[331741828,1720735832926,-150.0,0.000137,2]
[331741829,1720735832936,-529.01,0.000137,2]
[331741830,1720735832945,-150.0,0.000137,2]
[331741831,1720735832955,-355.21,0.000137,2]
[331741832,1720735832964,-150.0,0.000137,2]
[331741833,1720735832975,-150.0,0.000137,2]
[331741834,1720735832984,-1110.24531219,0.0001372,2]
[331741835,1720735832994,-738.0,0.00013735,2]
[331741836,1720735833004,-150.0,0.00013739,2]
[331741837,1720735833013,-150.0,0.00013767,2]
[331741838,1720735833023,-500.0,0.00013777,2]
[331741839,1720735833032,-500.0,0.00013786,2]
[331741840,1720735833042,-150.0,0.00013788,2]
[331741841,1720735833051,-500.0,0.00013794,2]
[331741842,1720735833060,-500.0,0.00013803,2]
[331741843,1720735833069,-2889.65519139,0.00013807,2]
[331741844,1720735833079,-500.0,0.00013812,2]
[331741845,1720735833088,-150.0,0.00013812,2]
[331741846,1720735833097,-500.0,0.00013821,2]
[331741847,1720735833107,-500.0,0.0001383,2]
[331741848,1720735833115,-500.0,0.00013838,2]
[331741849,1720735833124,-150.0,0.0001384,2]
[331741850,1720735833134,-150.0,0.00013846,2]
[331741851,1720735833144,-500.0,0.00013847,2]
[331741852,1720735833155,-150.0,0.00013849,2]
[331741853,1720735833164,-150.0,0.00013854,2]
[331741854,1720735833173,-150.0,0.00013855,2]
[331741855,1720735833184,-500.0,0.00013856,2]
[331741856,1720735833195,-150.0,0.00013858,2]
[331741857,1720735833205,-915.24968,0.0001386,2]
[331741858,1720735833214,-254.56621088,0.0001386,2]
[331741859,1720735833224,-500.0,0.00013865,2]
[331741860,1720735833235,-500.0,0.00013874,2]
[331741861,1720735833245,-738.0,0.00013876,2]
[331741862,1720735833254,-150.0,0.00013876,2]
[331741863,1720735833263,-150.0,0.00013879,2]
[331741864,1720735833272,-160.0,0.00013882,2]
[331741865,1720735833282,-500.0,0.00013882,2]
[331741866,1720735833291,-150.0,0.00013887,2]
[331741867,1720735833300,-160.0,0.00013891,2]
[331741868,1720735833309,-500.0,0.00013891,2]
[331741869,1720735833318,-150.0,0.00013895,2]
[331741870,1720735833328,-617.8558,0.00013899,2]
[331741871,1720735833337,-150.0,0.00013899,2]
[331741872,1720735833346,-321.3686,0.000139,2]
[331741873,1720735833355,-11479.3243,0.000139,2]
[331741874,1720735833364,-160.0,0.000139,2]
[331741875,1720735833374,-2853.9613,0.000139,2]
[331741876,1720735833383,-30681.4943,0.000139,2]
[331741877,1720735833392,-500.0,0.000139,2]
[331741878,1720735833401,-1251.0,0.000139,2]
[331741879,1720735833410,-1262.3,0.000139,2]
[331741880,1720735833419,-361.0,0.000139,2]
[331741881,1720735833431,-176.59021447,0.000139,2]
[331741882,1720735833441,-170.35002007,0.000139,2]
[331741883,1720735833450,-179.25993919,0.000139,2]
[331741884,1720735833459,-7500.0,0.000139,2]
[331741885,1720735833468,-320.58251652,0.000139,2]
[331741886,1720735833478,-150.0,0.00013917,2]
[331741887,1720735833487,-150.0,0.00013931,2]
[331741888,1720735833497,-150.0,0.00013934,2]
[331741889,1720735833506,-150.0,0.00013937,2]
[331741890,1720735833516,-150.0,0.0001395,2]
[331741891,1720735833525,-150.0,0.00013966,2]
[331741892,1720735833535,-772.235766,0.00013973,2]
[331741893,1720735833544,-150.0,0.00013986,2]
[331741894,1720735833554,-262.0,0.0001399,2]
[331741895,1720735833563,-2464.9060841,0.0001399,2]